bitfinex/quotes_SOLUSD_20250223
["timestamp","ask_amount","ask_price","bid_price","bid_amount"]
[1740344374198,0.03,167.93,167.92,15.1656564]
[1740344374886,0.03,167.93,167.91,9.2104564]
[1740344377989,0.03,167.93,167.92,5.9552]
[1740344405307,0.03,167.93,167.92,15.1656564]
[1740344406318,0.03,167.93,167.92,5.9552]
[1740344408134,0.03,167.93,167.89,95.9903]
[1740344408339,9.2104564,167.92,167.88,5.9566]
[1740344409022,9.2104564,167.92,167.87,0.063]
[1740344409023,9.2104564,167.9,167.87,6.0199]
[1740344409215,4.24,167.89,167.87,6.0199]
[1740344409417,9.2104564,167.88,167.87,0.063]
[1740344412325,13.4504564,167.89,167.87,0.063]
[1740344412842,4.24,167.89,167.87,0.063]
[1740344413910,4.24,167.89,167.87,6.0199]
[1740344416042,4.24,167.89,167.87,0.063]
[1740344417542,13.4504564,167.89,167.87,0.063]
[1740344422350,4.24,167.89,167.87,0.063]
[1740344426553,13.4504564,167.89,167.87,0.063]
[1740344427554,9.2104564,167.88,167.87,0.063]
[1740344428851,16.7586564,167.88,167.87,0.063]
[1740344429044,116.20830526,167.88,167.87,0.063]
[1740344430728,117.17830526,167.88,167.87,0.063]
[1740344433653,116.20830526,167.88,167.87,0.063]
[1740344433958,94.2904564,167.88,167.87,0.063]
[1740344438259,100.2470564,167.88,167.87,0.063]
[1740344439061,118.89670526,167.88,167.87,0.063]
[1740344440268,38.09670526,167.88,167.87,0.063]
[1740344445469,38.12670526,167.88,167.87,0.063]
[1740344460377,9.2404564,167.88,167.87,0.063]
[1740344460673,13.5004564,167.88,167.87,0.063]
[1740344460861,4.29,167.88,167.87,0.063]
[1740344462161,0.03,167.88,167.87,0.063]
[1740344462364,4.29,167.88,167.87,0.063]
[1740344465577,13.5004564,167.88,167.87,0.063]
[1740344467751,19.4570564,167.88,167.87,0.063]
[1740344469089,38.10670526,167.88,167.87,0.063]
[1740344470851,39.07670526,167.88,167.87,0.063]
[1740344471047,40.07670526,167.88,167.87,0.063]
[1740344473355,39.07670526,167.88,167.87,0.063]
[1740344473583,40.07670526,167.88,167.87,0.063]
[1740344476586,0.97,167.85,167.8,0.063]
[1740344476797,9.2104564,167.81,167.8,0.063]
[1740344477082,13.4904564,167.81,167.8,0.063]
[1740344478378,19.4495564,167.81,167.8,0.063]
[1740344479088,13.4904564,167.81,167.8,0.063]
[1740344479977,4.28,167.81,167.8,0.063]
[1740344498006,80.8,167.83,167.8,9.2734564]
[1740344498184,80.8,167.83,167.81,9.2104564]
[1740344498701,85.06,167.83,167.81,9.2104564]
[1740344499706,4.26,167.83,167.81,9.2104564]
[1740344501514,4.26,167.83,167.82,5.9587]
[1740344504407,80.83,167.86,167.82,5.9587]
[1740344504408,80.83,167.86,167.82,15.1691564]
[1740344504615,4.26,167.85,167.82,15.1691564]
[1740344507402,4.26,167.85,167.83,9.2104564]
[1740344508719,4.26,167.85,167.84,5.958]
[1740344510092,0.03,167.86,167.84,9.2104564]
[1740344510299,4.29,167.86,167.85,9.2104564]
[1740344511218,0.03,167.86,167.85,15.1681564]
[1740344511398,4.29,167.86,167.85,15.1681564]
[1740344513998,0.03,167.86,167.85,15.1681564]
[1740344514198,0.03,167.86,167.84,5.9579]
[1740344515304,0.03,167.86,167.83,5.9584]
[1740344516098,0.03,167.86,167.84,9.2104564]
[1740344516321,0.03,167.86,167.83,9.2104564]
[1740344516519,0.03,167.86,167.83,9.2734564]
[1740344518828,0.03,167.86,167.84,5.958]
[1740344522098,0.03,167.86,167.83,15.2318564]
[1740344526805,0.03,167.86,167.83,0.063]
[1740344527011,9.2104564,167.84,167.83,0.063]
[1740344531742,90.0104564,167.85,167.83,0.063]
[1740344532041,9.2104564,167.84,167.83,0.063]
[1740344534840,90.0104564,167.85,167.83,0.063]
[1740344537540,9.2104564,167.84,167.83,0.063]
[1740344542748,15.1684564,167.84,167.83,0.063]
[1740344542953,115.58810526,167.84,167.83,0.063]
[1740344543131,152.42993086,167.84,167.83,0.063]
[1740344544328,115.58810526,167.84,167.83,0.063]
[1740344547253,253.78810526,167.84,167.83,0.063]
[1740344550923,262.99856166,167.84,167.83,0.063]
[1740344551130,291.62993086,167.84,167.83,0.063]
[1740344555056,291.62993086,167.84,167.8,0.063]
[1740344555057,20.97,167.81,167.8,0.063]
[1740344555266,34.4404564,167.81,167.8,0.063]
[1740344556463,59.04920526,167.81,167.8,0.063]
[1740344560362,62.07349431,167.81,167.8,0.063]
[1740344562574,172.35349431,167.81,167.8,0.063]
[1740344563575,173.35349431,167.81,167.8,0.063]
[1740344563762,191.26349431,167.81,167.8,0.063]
[1740344564592,191.26349431,167.81,167.78,0.063]
[1740344564593,0.97,167.79,167.78,0.063]
[1740344564797,28.83010526,167.79,167.78,0.063]
[1740344565859,34.78990526,167.79,167.78,0.063]
[1740344569097,33.81990526,167.79,167.78,0.063]
[1740344569259,9.2104564,167.79,167.78,0.063]
[1740344569601,13.4704564,167.79,167.78,0.063]
[1740344570499,9.2104564,167.79,167.78,0.063]
[1740344570787,13.4704564,167.79,167.78,0.063]
[1740344574796,13.5004564,167.79,167.78,0.063]
[1740344579611,0.03,167.79,167.78,0.063]
[1740344579813,4.29,167.79,167.78,0.063]
[1740344580467,0.03,167.79,167.78,0.063]
[1740344580673,4.29,167.79,167.78,0.063]
[1740344583093,13.5004564,167.79,167.78,0.063]
[1740344585602,4.29,167.79,167.78,0.063]
[1740344621133,13.5004564,167.79,167.78,0.063]
[1740344622107,4.29,167.79,167.78,0.063]
[1740344624446,85.09,167.79,167.78,0.063]
[1740344629314,94.3004564,167.79,167.78,0.063]
[1740344629834,112.95010526,167.79,167.78,0.063]
[1740344630043,119.87990526,167.79,167.78,0.063]
[1740344630338,39.07990526,167.79,167.78,0.063]
[1740344630931,33.12010526,167.79,167.78,0.063]
[1740344631143,32.15010526,167.79,167.78,0.063]
[1740344631549,13.5004564,167.79,167.78,0.063]
[1740344643754,9.2404564,167.79,167.78,0.063]
[1740344643934,13.5004564,167.79,167.78,0.063]
[1740344651341,4.29,167.79,167.78,0.063]
[1740344654181,0.03,167.79,167.78,0.063]
[1740344654348,0.03,167.79,167.78,9.2734564]
[1740344654349,4.31,167.79,167.78,9.2734564]
[1740344656271,4.31,167.79,167.78,15.2335564]
[1740344657181,4.31,167.79,167.78,6.0231]
[1740344659184,0.03,167.79,167.78,6.0231]
[1740344659387,4.31,167.79,167.78,6.0231]
[1740344661995,4.31,167.79,167.78,0.063]
[1740344667159,10.2698,167.79,167.78,0.063]
[1740344667682,19.4802564,167.79,167.78,0.063]
[1740344667866,38.12990526,167.79,167.78,0.063]
[1740344668074,177.29990526,167.79,167.78,0.063]
[1740344672059,40.09990526,167.79,167.78,0.063]
[1740344674497,58.01990526,167.79,167.78,0.063]
[1740344674701,59.94820226,167.79,167.78,0.063]
[1740344675164,60.94820226,167.79,167.78,0.063]
[1740344675993,59.94820226,167.79,167.78,0.063]
[1740344678088,42.02820226,167.79,167.78,0.063]
[1740344679385,36.06840226,167.79,167.78,0.063]
[1740344681300,42.02820226,167.79,167.78,0.063]
[1740344683783,180.22820226,167.79,167.78,0.063]
[1740344684525,198.14820226,167.79,167.78,0.063]
[1740344684713,180.22820226,167.79,167.78,0.063]
[1740344688109,198.14820226,167.79,167.78,0.063]
[1740344691110,308.44820226,167.79,167.78,0.063]
[1740344692931,290.52820226,167.79,167.78,0.063]
[1740344698194,308.44820226,167.79,167.78,0.063]
[1740344699313,309.44820226,167.79,167.78,0.063]
[1740344700397,38.53964886,167.78,167.77,0.063]
[1740344700594,83.59193086,167.78,167.77,0.063]
[1740344700794,84.59193086,167.78,167.77,0.063]
[1740344701617,37.53964886,167.77,167.76,0.063]
[1740344701817,83.59193086,167.77,167.76,0.063]
[1740344702616,89.55243086,167.77,167.76,0.063]
[1740344703014,52.71060526,167.77,167.76,0.063]
[1740344711720,53.71060526,167.77,167.76,0.063]
[1740344713232,52.71060526,167.77,167.76,0.063]
[1740344713607,53.74060526,167.77,167.76,0.063]
[1740344714204,52.74060526,167.77,167.76,0.063]
[1740344715238,163.06060526,167.77,167.76,0.063]
[1740344715614,164.06060526,167.77,167.76,0.063]
[1740344716332,163.06060526,167.77,167.76,0.063]
[1740344716721,164.06060526,167.77,167.76,0.063]
[1740344717443,163.06060526,167.77,167.76,0.063]
[1740344718138,164.06060526,167.77,167.76,0.063]
[1740344718837,146.14060526,167.77,167.76,0.063]
[1740344719130,145.14060526,167.77,167.76,0.063]
[1740344719339,146.14060526,167.77,167.76,0.063]
[1740344719513,145.14060526,167.77,167.76,0.063]
[1740344720536,146.14060526,167.77,167.76,0.063]
[1740344721037,145.14060526,167.77,167.76,0.063]
[1740344724040,163.06060526,167.77,167.76,0.063]
[1740344727114,164.06060526,167.77,167.76,0.063]
[1740344727339,163.06060526,167.77,167.76,0.063]
[1740344728043,164.06060526,167.77,167.76,0.063]
[1740344728244,163.06060526,167.77,167.76,0.063]
[1740344732123,164.06060526,167.77,167.76,0.063]
[1740344751780,0.97,167.75,167.74,0.063]
[1740344752077,28.83010526,167.75,167.74,0.063]
[1740344753060,34.79130526,167.75,167.74,0.063]
[1740344753442,145.13130526,167.75,167.74,0.063]
[1740344763946,164.05130526,167.75,167.74,0.063]
[1740344764967,39.61964886,167.71,167.69,0.063]
[1740344765160,53.09010526,167.71,167.69,0.063]
[1740344765480,59.05270526,167.71,167.69,0.063]
[1740344766480,60.05270526,167.71,167.69,0.063]
[1740344768367,39.61964886,167.71,167.69,0.063]
[1740344768551,43.87964886,167.71,167.69,0.063]
[1740344768879,23.87964886,167.71,167.69,0.063]
[1740344772785,33.09010526,167.71,167.69,0.063]
[1740344774404,39.05270526,167.71,167.69,0.063]
[1740344780990,40.05270526,167.71,167.69,0.063]
[1740344783585,57.97270526,167.71,167.69,0.063]
[1740344784476,57.97270526,167.71,167.7,0.0001]
[1740344789703,20.97,167.67,167.66,0.063]
[1740344789914,48.83010526,167.67,167.66,0.063]
[1740344790288,49.83010526,167.67,167.66,0.063]
[1740344790607,67.75010526,167.67,167.66,0.063]
[1740344791107,70.10706342,167.67,167.66,0.063]
[1740344791802,180.48706342,167.67,167.66,0.063]
[1740344792015,186.45106342,167.67,167.66,0.063]
[1740344795932,183.09410526,167.67,167.66,0.063]
[1740344796717,186.02915814,167.67,167.66,0.063]
[1740344804425,152.93470174,167.67,167.66,0.063]
[1740344804721,166.40515814,167.67,167.66,0.063]
[1740344805514,304.60515814,167.67,167.66,0.063]
[1740344812008,310.56915814,167.67,167.66,0.063]
[1740344817416,172.36915814,167.67,167.66,0.063]
[1740344821833,20.97,167.64,167.63,0.063]
[1740344822024,28.83010526,167.64,167.63,0.063]
[1740344823443,34.79520526,167.64,167.63,0.063]
[1740344824107,52.71520526,167.64,167.63,0.063]
[1740344829043,34.79520526,167.64,167.63,0.063]
[1740344829216,39.05520526,167.64,167.63,0.063]
[1740344832645,32.12010526,167.64,167.63,0.063]
[1740344833747,33.09010526,167.64,167.63,0.063]
[1740344834045,32.12010526,167.64,167.63,0.063]
[1740344834660,33.09010526,167.64,167.63,0.063]
[1740344836641,9.2104564,167.65,167.63,0.063]
[1740344836846,4.26,167.64,167.63,0.063]
[1740344839048,4.26,167.65,167.63,9.2734564]
[1740344839219,4.26,167.65,167.64,9.2104564]
[1740344840726,4.26,167.65,167.64,15.1755564]
[1740344840933,4.26,167.65,167.63,9.2734564]
[1740344841148,4.26,167.65,167.63,0.063]
[1740344841449,4.26,167.65,167.63,15.2387564]
[1740344851558,4.26,167.65,167.63,9.2734564]
[1740344853356,4.26,167.65,167.64,9.2104564]
[1740344854970,4.26,167.65,167.64,15.1755564]
[1740344856042,4.26,167.65,167.64,9.2104564]
[1740344856545,4.26,167.65,167.63,15.2388564]
[1740344860671,4.26,167.65,167.64,9.2104564]
[1740344863280,4.26,167.65,167.64,15.1755564]
[1740344867286,4.26,167.65,167.63,0.063]
[1740344871366,108.66010526,167.64,167.63,0.063]
[1740344873776,114.62520526,167.64,167.63,0.063]
[1740344874988,115.59520526,167.64,167.63,0.063]
[1740344876985,34.79520526,167.64,167.63,0.063]
[1740344878273,145.17520526,167.64,167.63,0.063]
[1740344885094,145.17520526,167.64,167.63,0.0001]
[1740344885274,146.81630526,167.64,167.63,0.0001]
[1740344885691,149.20790426,167.64,167.63,0.0001]
[1740344886903,146.81630526,167.64,167.63,0.0001]
[1740344887219,149.20790426,167.64,167.63,0.0001]
[1740344888509,150.20790426,167.64,167.63,0.0001]
[1740344889014,168.13790426,167.64,167.63,0.0001]
[1740344890209,38.54964886,167.63,167.62,0.0001]
[1740344890410,47.76010526,167.63,167.62,0.0001]
[1740344890915,50.15190626,167.63,167.62,0.0001]
[1740344891125,56.11740626,167.63,167.62,0.0001]
[1740344893895,53.72560526,167.63,167.62,0.0001]
[1740344900332,34.79560526,167.63,167.62,0.0001]
[1740344900488,39.05560526,167.63,167.62,0.0001]
[1740344912127,56.98560526,167.63,167.62,0.0001]
[1740344915210,57.04860526,167.63,167.62,0.0001]
[1740344917299,58.04860526,167.63,167.62,0.0001]
[1740344918733,58.04860526,167.63,167.61,0.0431]
[1740344918734,38.54964886,167.62,167.61,0.0431]
[1740344918917,18.64964886,167.56,167.52,17.3211564]
[1740344919106,4.26,167.55,167.52,17.3211564]
[1740344919435,4.26,167.55,167.53,9.2104564]
[1740344921237,18.64964886,167.54,167.52,1.5672]
[1740344922206,24.61864886,167.54,167.52,1.5672]
[1740344922438,24.61864886,167.54,167.51,9.2104564]
[1740344923429,18.64964886,167.54,167.51,9.2104564]
[1740344924334,80.8,167.53,167.51,9.2104564]
[1740344926419,80.8,167.52,167.5,9.2104564]
[1740344926621,80.8,167.52,167.51,9.2104564]
[1740344927127,80.8,167.52,167.51,9.2404564]
[1740344928639,80.8,167.52,167.51,15.2101564]
[1740344929343,85.06,167.52,167.51,15.2101564]
[1740344930340,4.26,167.52,167.51,15.2101564]
[1740344940064,4.26,167.52,167.51,9.2404564]
[1740344940834,2.91539364,167.52,167.51,9.2404564]
[1740344941033,2.91539364,167.52,167.51,0.03]
[1740344944434,2.91539364,167.52,167.51,9.2404564]
[1740344945832,2.91539364,167.52,167.51,0.03]
[1740344951083,2.97839364,167.52,167.51,0.03]
[1740344961394,21.6280425,167.52,167.51,0.03]
[1740344965695,27.5974425,167.52,167.51,0.03]
[1740344968399,30.54232099,167.52,167.51,0.03]
[1740344969603,2.97839364,167.52,167.51,9.2404564]
[1740344975224,4.343,167.52,167.51,9.2404564]
[1740344981090,4.343,167.52,167.51,15.2101564]
[1740344981298,4.343,167.52,167.51,9.2404564]
[1740344998629,0.063,167.52,167.51,15.2101564]
[1740344998953,4.323,167.52,167.51,15.2101564]
[1740345003972,0.063,167.52,167.51,15.2101564]
[1740345011794,0.063,167.52,167.51,52.051982]
[1740345012761,0.063,167.56,167.54,9.2104564]
[1740345012963,4.343,167.56,167.55,9.2104564]
[1740345013162,0.063,167.56,167.55,9.2104564]
[1740345013499,4.343,167.56,167.55,9.2104564]
[1740345014098,4.343,167.56,167.55,15.1787564]
[1740345022011,0.063,167.56,167.55,15.1787564]
[1740345032831,110.44,167.6,167.58,29.2104564]
[1740345033021,110.44,167.6,167.59,9.2104564]
[1740345034327,110.44,167.6,167.59,15.1773564]
[1740345036034,4.28,167.62,167.59,15.1773564]
[1740345036240,4.28,167.62,167.61,9.2104564]
[1740345037733,0.063,167.63,167.61,9.2104564]
[1740345037934,0.063,167.63,167.62,9.2104564]
[1740345038098,4.343,167.63,167.62,9.2104564]
[1740345039631,0.063,167.63,167.62,9.2104564]
[1740345039809,4.343,167.63,167.62,9.2104564]
[1740345040199,4.343,167.63,167.62,15.1762564]
[1740345044842,0.063,167.63,167.62,15.1762564]
[1740345054557,4.28,167.65,167.62,15.1762564]
[1740345054727,4.28,167.67,167.64,9.2104564]
[1740345054934,4.28,167.67,167.66,9.2104564]
[1740345055431,4.28,167.67,167.66,15.1748564]
[1740345057462,4.28,167.67,167.66,9.2104564]
[1740345058069,4.28,167.67,167.65,9.2104564]
[1740345060762,10.2444,167.67,167.62,81.1]
[1740345060962,10.2444,167.67,167.63,9.2104564]
[1740345062059,10.2444,167.67,167.64,9.2104564]
[1740345062563,4.28,167.67,167.64,9.2104564]
[1740345062969,4.28,167.67,167.65,9.2104564]
[1740345063176,4.28,167.67,167.66,9.2104564]
[1740345063365,4.28,167.67,167.65,9.2104564]
[1740345065546,4.28,167.67,167.65,15.2051564]
[1740345065867,4.28,167.67,167.66,9.2104564]
[1740345066837,4.28,167.67,167.66,15.1748564]
[1740345072085,4.28,167.67,167.65,9.2404564]
[1740345074283,4.28,167.67,167.65,15.2050564]
[1740345074500,10.2441,167.67,167.65,0.03]
[1740345074676,18.64964886,167.66,167.65,0.03]
[1740345075492,27.86010526,167.66,167.65,0.03]
[1740345076273,33.82450526,167.66,167.65,0.03]
[1740345078796,45.04942831,167.66,167.65,0.03]
[1740345080193,46.01942831,167.66,167.65,0.03]
[1740345080368,42.39350526,167.66,167.65,0.03]
[1740345082316,60.32350526,167.66,167.65,0.0001]
[1740345083807,42.39350526,167.66,167.65,0.0001]
[1740345087206,36.42910526,167.66,167.65,0.0001]
[1740345087397,27.21864886,167.66,167.65,0.0001]
[1740345090109,41.42350526,167.66,167.65,0.0001]
[1740345090798,42.39350526,167.66,167.65,0.0001]
[1740345092905,46.65350526,167.66,167.65,0.0001]
[1740345093103,46.15350526,167.66,167.65,0.0001]
[1740345098201,43.63890526,167.66,167.65,0.0001]
[1740345098403,37.58450526,167.66,167.65,0.0001]
[1740345098714,38.55450526,167.66,167.65,0.0001]
[1740345103920,56.48450526,167.66,167.65,0.0001]
[1740345105926,38.55450526,167.66,167.65,0.0001]
[1740345110614,38.61750526,167.66,167.65,0.0001]
[1740345114022,56.54750526,167.66,167.65,0.0001]
[1740345116334,38.61750526,167.66,167.65,0.0001]
[1740345124246,56.54750526,167.66,167.65,0.0001]
[1740345124843,38.61750526,167.66,167.65,0.0001]
[1740345131212,0.97,167.64,167.55,1.5641]
[1740345131433,18.64964886,167.59,167.55,1.5641]
[1740345131632,4.26,167.58,167.55,1.5641]
[1740345132146,4.26,167.58,167.55,10.7745564]
[1740345132347,4.26,167.58,167.57,9.2104564]
[1740345134345,4.26,167.58,167.56,9.2104564]
[1740345135845,4.26,167.58,167.56,15.1783564]
[1740345139050,4.26,167.58,167.55,16.7427564]
[1740345141450,4.26,167.58,167.56,9.2104564]
[1740345141931,4.26,167.58,167.55,16.7427564]
[1740345145458,4.26,167.58,167.56,9.2104564]
[1740345148857,4.26,167.58,167.57,9.2104564]
[1740345149451,80.8,167.61,167.57,9.2104564]
[1740345149661,4.26,167.6,167.59,9.2104564]
[1740345150344,25.9656,167.63,167.59,9.2104564]
[1740345150535,4.26,167.62,167.59,9.2104564]
[1740345153462,4.26,167.63,167.61,9.2104564]
[1740345154968,6.0277,167.66,167.61,9.2104564]
[1740345155261,4.26,167.65,167.61,9.2104564]
[1740345158573,15.2381564,167.66,167.61,9.2104564]
[1740345158871,4.26,167.64,167.61,9.2104564]
[1740345160669,4.26,167.64,167.6,7.5196]
[1740345160670,0.063,167.65,167.63,9.2104564]
[1740345160854,4.26,167.64,167.61,5.9662]
[1740345162277,4.26,167.64,167.63,9.2104564]
[1740345165163,4.26,167.64,167.63,15.1759564]
[1740345168279,0.063,167.65,167.63,15.1759564]
[1740345168577,4.323,167.65,167.63,15.1759564]
[1740345169278,0.063,167.65,167.63,15.1759564]
[1740345169489,4.323,167.65,167.63,15.1759564]
[1740345173572,4.323,167.65,167.64,15.1755564]
[1740345174893,4.323,167.65,167.63,9.2104564]
[1740345176576,4.323,167.65,167.63,15.1758564]
[1740345178092,4.323,167.65,167.63,9.2104564]
[1740345182699,4.323,167.65,167.63,15.1759564]
[1740345182874,4.323,167.65,167.64,9.2104564]
[1740345188689,4.323,167.65,167.64,15.1755564]
[1740345190385,0.063,167.65,167.64,15.1755564]
[1740345206413,0.063,167.65,167.64,15.2055564]
[1740345211435,0.063,167.65,167.64,0.03]
[1740345239164,33.88790526,167.65,167.64,0.03]
[1740345245085,114.68790526,167.65,167.64,0.03]
[1740345255186,113.34184585,167.65,167.64,0.03]
[1740345265240,85.06,167.65,167.64,0.03]
[1740345265817,85.123,167.65,167.64,0.03]
[1740345267130,80.863,167.65,167.64,0.03]
[1740345267305,85.123,167.65,167.64,0.03]
[1740345268626,80.863,167.65,167.64,0.03]
[1740345268836,0.063,167.65,167.64,9.2404564]
[1740345270833,0.063,167.65,167.64,15.2055564]
[1740345271951,0.063,167.65,167.64,96.3055564]
[1740345272134,0.063,167.65,167.64,90.3404564]
[1740345272532,0.063,167.65,167.64,96.3055564]
[1740345277829,0.063,167.65,167.64,15.2055564]
[1740345301429,0.063,167.66,167.64,96.3055564]
[1740345301738,0.063,167.66,167.65,9.2104564]
[1740345301945,0.063,167.66,167.65,90.3104564]
[1740345303042,0.063,167.66,167.65,96.2752564]
[1740345303739,0.063,167.66,167.65,81.1]
[1740345304541,0.063,167.66,167.65,96.2752564]
[1740345306249,0.063,167.66,167.65,90.3104564]
[1740345306554,0.063,167.66,167.65,96.2752564]
[1740345313454,0.063,167.66,167.65,9.2104564]
[1740345314756,0.063,167.66,167.65,15.1752564]
[1740345324472,0.063,167.66,167.65,15.2382564]
[1740345325373,0.063,167.66,167.65,96.3382564]
[1740345331982,0.063,167.66,167.65,87.1278]
[1740345334386,0.063,167.66,167.65,96.3382564]
[1740345334571,0.063,167.66,167.65,81.163]
[1740345336192,0.063,167.66,167.65,0.063]
[1740345338086,27.92310526,167.66,167.65,0.063]
[1740345339187,33.88750526,167.66,167.65,0.063]
[1740345348101,34.85750526,167.66,167.65,0.063]
[1740345348796,33.88750526,167.66,167.65,0.063]
[1740345349202,27.92310526,167.66,167.65,0.063]
[1740345349901,32.18310526,167.66,167.65,0.063]
[1740345350113,13.5334564,167.66,167.65,0.063]
[1740345350304,4.323,167.66,167.65,0.063]
[1740345352111,0.063,167.66,167.65,0.063]
[1740345352405,4.323,167.66,167.65,0.063]
[1740345353518,0.063,167.66,167.65,0.063]
[1740345353685,4.323,167.66,167.65,0.063]
[1740345354584,0.063,167.66,167.65,0.063]
[1740345354897,4.323,167.66,167.65,9.2734564]
[1740345355204,0.063,167.66,167.65,9.2734564]
[1740345355593,0.063,167.66,167.65,90.3734564]
[1740345356896,0.063,167.66,167.65,96.3382564]
[1740345360815,0.0001,167.66,167.65,96.3382564]
[1740345363194,0.0001,167.66,167.65,98.2325658]
[1740345364429,0.063,167.69,167.68,20.0]
[1740345364734,0.063,167.69,167.68,66.9464793]
[1740345365490,0.063,167.69,167.68,72.9101793]
[1740345366020,0.063,167.69,167.68,35.1741564]
[1740345368824,0.063,167.69,167.68,72.015982]
[1740345369734,0.0001,167.69,167.68,154.115982]
[1740345369898,0.03,167.7,167.69,1.0]
[1740345369899,0.0001,167.7,167.69,1.0]
[1740345370099,0.0001,167.7,167.69,92.20457167]
[1740345372234,0.0001,167.7,167.69,98.16787167]
[1740345373036,0.03,167.73,167.72,20.0]
[1740345373332,0.03,167.73,167.72,31.10440003]
[1740345374230,0.03,167.73,167.72,37.06670003]
[1740345374438,0.03,167.76,167.72,51.97240003]
[1740345374633,0.03,167.76,167.72,133.07240003]
[1740345374936,0.03,167.76,167.72,132.1784564]
[1740345376933,0.03,167.76,167.75,9.2104564]
[1740345377312,0.03,167.76,167.75,10.10430183]
[1740345377521,0.03,167.76,167.75,9.2104564]
[1740345377722,0.0001,167.77,167.75,10.10441654]
[1740345377920,0.0001,167.77,167.76,9.2104564]
[1740345378137,0.0001,167.77,167.76,90.3104564]
[1740345378838,0.0001,167.77,167.76,96.2712564]
[1740345379947,0.0001,167.77,167.76,81.1]
[1740345380749,0.0001,167.77,167.76,90.3104564]
[1740345380953,0.0001,167.77,167.76,96.2712564]
[1740345386123,4.17565257,167.8,167.76,96.2712564]
[1740345386327,4.17565257,167.8,167.78,9.2104564]
[1740345386532,4.17565257,167.8,167.77,9.2104564]
[1740345387442,4.17565257,167.8,167.76,81.1]
[1740345387854,4.17565257,167.8,167.76,90.3104564]
[1740345391747,10.13505257,167.8,167.76,90.3104564]
[1740345392751,10.16505257,167.8,167.76,90.3104564]
[1740345396253,10.16505257,167.8,167.77,9.2104564]
[1740345396562,5.9894,167.8,167.77,9.2104564]
[1740345396766,4.26,167.79,167.77,9.2104564]
[1740345397265,4.26,167.79,167.78,9.2104564]
[1740345397763,0.03,167.8,167.78,9.2104564]
[1740345397929,0.03,167.8,167.79,9.2104564]
[1740345398442,0.03,167.8,167.79,90.3104564]
[1740345398646,0.03,167.8,167.79,96.2702564]
[1740345413755,0.063,167.82,167.81,20.0]
[1740345413954,0.063,167.82,167.81,110.3104564]
[1740345415053,0.03,167.83,167.81,111.8317564]
[1740345415255,0.0001,167.83,167.82,46.94573319]
[1740345415456,0.0001,167.83,167.82,47.94573319]
[1740345416051,0.0001,167.83,167.82,53.90443319]
[1740345418453,0.0001,167.84,167.83,46.052282]
[1740345418653,0.0001,167.84,167.83,47.052282]
[1740345419973,0.0001,167.84,167.83,53.010682]
[1740345420353,0.0001,167.84,167.83,134.110682]
[1740345420682,0.03,167.86,167.85,20.0]
[1740345420975,0.03,167.86,167.85,110.3104564]
[1740345421770,0.03,167.86,167.85,116.2681564]
[1740345433369,4.26,167.93,167.85,116.2681564]
[1740345433591,4.19,167.93,167.86,9.2104564]
[1740345433901,4.19,167.93,167.91,9.2104564]
[1740345435427,4.19,167.93,167.9,15.1660564]
[1740345437193,10.1448,167.93,167.88,15.1669564]
[1740345437496,19.3552564,167.93,167.88,15.1669564]
[1740345438763,10.1448,167.93,167.89,9.2104564]
[1740345440090,10.1448,167.93,167.89,9.2734564]
[1740345440291,10.1448,167.93,167.89,0.063]